Cogmind - Beta 17 @@@ ROGUE MODE // 2026.06.22 @ 21:35:47 Player: Jimothy Jimone Result: Destroyed by D-53 Grenadier with Mini Grenade Launcher Performance ------------- Evolutions (0) 0 Regions Visited (2) 400 Robots Destroyed (6) 30 Value Destroyed (167) 167 Prototype IDs (4) 80 Alien Tech Used (0) 0 Bonus (0) 0 TOTAL SCORE: 677 Bonus ------- None Cogmind --------- Core Integrity 0/250 Matter 213/300 Energy 27/100 System Corruption 2% Temperature Cool (12) Movement Core (50) Location -10/Mines Parts ------- > --- POWER (1) -------- (None) > --- PROPULSION (2) --- (None) > --- UTILITY (2) ------ ECM Suite > --- WEAPON (2) ------- (None) > --- INVENTORY (5) ---- Light Nuclear Core Terrain Scan Processor ECM Suite Mining Laser Peak State ------------ > --- POWER ------------ Light Ion Engine > --- PROPULSION ------- Wheel Wheel > --- UTILITY ---------- Improved Terrain Scanner Seismic Detector > --- WEAPON ----------- Particle Gun Light Assault Rifle > --- INVENTORY -------- ECM Suite ECM Suite Grenade Launcher Grenade Launcher [Rating: 10] Favorites ----------- Power Light Ion Engine Engine Light Ion Engine Propulsion Wheel Wheel Wheel Utility Improved Terrain Scanner Device Improved Terrain Scanner Weapon Light Assault Rifle Energy Gun Particle Gun Ballistic Gun Light Assault Rifle Launcher Grenade Launcher Special Weapon Mining Laser Build | -11 -10 -10 ------- Run | Yrd Mat Min Slots Evolved . | . . . Power . | . . . Propulsion . | . . . Utility . | . . . Weapon . | . . . Parts Attached 13 | 7 4 2 Power 2 | 1 1 . Engine 2 | 1 1 . Core . | . . . Reactor . | . . . Propulsion 3 | 2 1 . Treads . | . . . Leg . | . . . Wheel 3 | 2 1 . Hover . | . . . Flight . | . . . Utility 3 | 2 . 1 Device 3 | 2 . 1 Storage . | . . . Processor . | . . . Hackware . | . . . Protection . | . . . Artifact . | . . . Weapon 5 | 2 2 1 Energy Gun 1 | . 1 . Energy Cannon . | . . . Ballistic Gun 1 | 1 . . Ballistic Cannon . | . . . Launcher 2 | . 1 1 Special Weapon 1 | 1 . . Impact Weapon . | . . . Slashing Weapon . | . . . Piercing Weapon . | . . . Special Melee Weapon . | . . . Unidentified Prototypes . | . . . Parts Lost 11 | . 3 8 Power 2 | . 1 1 Propulsion 3 | . 1 2 Utility 2 | . . 2 Weapon 4 | . 1 3 Highest Loss Streak 8 | . 3 8 To Critical Strikes . | . . . Average Backups 3 | . 4 4 Power . | . . . Propulsion . | . . . Utility 1 | . 1 2 Weapon 1 | . 1 1 Tool/Special . | . . . Unused Backups 3 | . . 3 Power 1 | . . 1 Propulsion . | . . . Utility 2 | . . 2 Weapon . | . . . Tool/Special . | . . . Average Slot Usage (%) 90 | . 95 79 Engine 10 | . 11 9 Wheel 23 | . 26 17 Device 26 | . 28 24 Energy Gun 6 | . 3 14 Ballistic Gun 8 | . 13 . Launcher 5 | . . 14 Special Weapon 7 | . 10 . Peak Build Rating 10 | 9 10 10 Average Rating 8 | 6 8 8 On Entrance 6 | . 9 10 Avg Prop Armor Cover (%) . | . . . Naked Turns . | . . . Heaviest Build 11 | 7 11 11 Greatest Support 20 | 20 20 20 Greatest Overweight (x) 3 | 1 . 3 Average Overweight (x) . | . . . Largest Inventory Capacity 5 | 5 5 5 Average Capacity 5 | 5 5 5 Most Carried 5 | . 5 5 Average Carried 3 | . 4 4 Final Capacity 5 | 5 5 5 Final Carried 4 | . 4 4 Class Distribution -------------------- 100% | Mutant Dominant Class ---------------- Mutant | -10/Materials Mutant | -10/Mines Resources | -11 -10 -10 ----------- Run | Yrd Mat Min Matter Collected 375 | 229 40 106 Remotely . | . . . Salvage Created 124 | 32 40 52 Parts 13 | 6 2 5 Haulers Intercepted . | . . . Recyclers Shooed . | . . . Parts Field Recycled . | . . . Retrieved Matter . | . . . Parts Self-Destructed . | . . . Prevented . | . . . Parts Restored . | . . . Kills | -11 -10 -10 ------- Run | Yrd Mat Min Combat Hostiles Destroyed 9 | . 2 7 Guns 2 | . 1 1 Cannons 1 | . 1 . AOE 6 | . . 6 Classes Destroyed 4 | 1 1 2 Builder 1 | . . 1 Tunneler 2 | 2 . . Grunt 3 | . 2 1 Assembled 6 | . . 6 Best Kill Streak 8 | 1 1 8 Combat Bots Only 6 | . 1 6 Max Kills in Single Turn 4 | 1 1 4 Gunslinging . | . . . Exploded 3 | . . 3 Melee . | . . . Uniques/NPCs Destroyed . | . . . Combat | -11 -10 -10 -------- Run | Yrd Mat Min Hostile Shots Fired 64 | . 38 26 Missed 12 | . 8 4 Hits 52 | . 30 22 Projectile 52 | . 30 22 AOE 3 | . . 3 Damage Taken 844 | . 349 495 Core 255 | . 106 149 Absorbed by Shields . | . . . Core Remaining (%) 100 | 100 . . Volleys Fired 75 | 23 39 13 Largest 2 | 2 2 2 Hottest 120 | 120 120 95 Shots Fired 98 | 24 48 26 Gun 71 | 23 35 13 Cannon . | . . . Launcher 13 | . . 13 Special 14 | 1 13 . Kinetic 51 | 23 28 . Thermal 34 | 1 20 13 Explosive 13 | . . 13 Electromagnetic . | . . . Robot Hit Streak 8 | 4 8 5 Robot Miss Streak 3 | 3 3 2 Penetration Max . | . . . Secondary Targets . | . . . Shots Hit Robots 44 | 11 26 7 Core Hits 34 | 4 5 25 Critical Kills . | . . . Critical Parts Destroyed 1 | 1 . . Critical Strikes 1 | 1 . . Destroy 1 | 1 . . Melee Attacks . | . . . Impact . | . . . Slashing . | . . . Piercing . | . . . Sneak Attacks . | . . . Combat Hostiles . | . . . Follow-up Attacks . | . . . Damage Inflicted 904 | 93 282 529 Guns 379 | 93 234 52 Cannons . | . . . Explosions 477 | . . 477 Melee . | . . . Ramming . | . . . Kinetic 248 | 93 155 . Thermal 179 | . 127 52 Explosive 477 | . . 477 Electromagnetic . | . . . Impact . | . . . Slashing . | . . . Piercing . | . . . Highest Corruption 2 | . . 2 Average Corruption 2 | . . 2 Corruption Purged . | . . . Corruption Blocked . | . . . Effects 1 | . . 1 Matter Fused 1 | . . 1 Overload Shots . | . . . Overflow Damage 5 | . . 5 Projectiles . | . . . Explosions 5 | . . 5 Melee . | . . . Knockbacks . | . . . Impact . | . . . Kinetic . | . . . Secondary . | . . . Self-Inflicted Damage 109 | . . 109 Shots 4 | . . 4 Rammed . | . . . Targets Rammed . | . . . Kicked . | . . . Crushed . | . . . Highest Temperature 126 | 40 126 95 Average Temperature 40 | 23 44 35 Received Heat Transfer 210 | . 192 18 Siege Activations . | . . . Martial Activations . | . . . Shielding Activations . | . . . Robots Disrupted . | . . . Combat Hostiles . | . . . Robots Corrupted . | . . . Combat Hostiles . | . . . Parts Fried . | . . . Impact Corruptions . | . . . Robots Melted . | . . . Combat Hostiles . | . . . Parts Melted 1 | . 1 . Heat Transferred 396 | . 285 111 Parts Sabotaged . | . . . Parts Stolen . | . . . Parts Stripped . | . . . Power Chain Reactions . | . . . Alert | -11 -10 -10 ------- Run | Yrd Mat Min Maximum Alert Level . | . . . Low Security (%) 100 | 100 100 100 Level 1 . | . . . Level 2 . | . . . Level 3 . | . . . Level 4 . | . . . Level 5 . | . . . High Security . | . . . Max Security . | . . . Peak Influence 49 | 5 30 49 Initial . | . . . Average 4 | . 5 7 Influence Increases 189 | 10 94 85 Destroy 0b10 Robot/C 60 | . 40 20 Destroy 0b10 Robot/NC 15 | 10 . 5 Destroy Leader 20 | . 10 10 Successful Hack 9 | . 9 . Disable Machine 30 | . 30 . Destroy Structure 55 | . 5 50 Influence Decreases 189 | 10 94 85 Time Decay 115 | 10 74 31 Lost Part 74 | . 20 54 Squads Dispatched . | . . . Investigation . | . . . Extermination . | . . . Reinforcement . | . . . Assault . | . . . Garrison . | . . . Intercept . | . . . Searches Triggered . | . . . Construction Impeded . | . . . Haulers Reinforced . | . . . Active Scanning Responses . | . . . Cargo Convoy Interrupts . | . . . Stealth | -11 -10 -10 --------- Run | Yrd Mat Min Distress Signals . | . . . Communications Jammed . | . . . Distress Signals . | . . . Times Spotted 14 | . 4 10 Peak Tracking Total 6 | . 2 6 Tactical Retreats . | . . . Traps | -11 -10 -10 ------- Run | Yrd Mat Min Traps Triggered . | . . . Indirectly . | . . . Trap Hack Attempts . | . . . Triggered . | . . . Disarmed . | . . . Reprogrammed . | . . . Reused . | . . . Traps Extracted . | . . . Installed . | . . . Triggered . | . . . Machines | -11 -10 -10 ---------- Run | Yrd Mat Min Machines Disabled 2 | . 2 . Max in Single Turn 1 | . 1 . Machines Repaired . | . . . Machines Dismantled . | . . . Machines Sabotaged . | . . . Overloaded Fab Kills . | . . . Hacking | -11 -10 -10 --------- Run | Yrd Mat Min Machines Accessed 3 | . 3 . Terminals 3 | . 3 . Fabricators . | . . . Repair Stations . | . . . Recycling Units . | . . . Scanalyzers . | . . . Garrison Access . | . . . Total Hacks 6 | . 6 . Successful 3 | . 3 . Failed 3 | . 3 . Catastrophic . | . . . Database Lockouts . | . . . Manual . | . . . Terminals 6 | . 6 . Fabricators . | . . . Repair Stations . | . . . Recycling Units . | . . . Scanalyzers . | . . . Garrison Access . | . . . Terminal Hacks 3 | . 3 . Prototype ID Bank 2 | . 2 . Emergency Access Points 1 | . 1 . Fabricator Hacks . | . . . Repair Station Hacks . | . . . Recycling Unit Hacks . | . . . Scanalyzer . | . . . Garrison Access Hacks . | . . . Unauthorized Hacks . | . . . Terminals . | . . . Fabricators . | . . . Repair Stations . | . . . Recycling Units . | . . . Scanalyzers . | . . . Garrison Access . | . . . Data Cores Recovered . | . . . Used . | . . . Hacking Detections 1 | . 1 . Full Trace Events 1 | . 1 . Feedback Events . | . . . Feedback Blocked . | . . . Robot Schematics Acquired . | . . . Robots Built . | . . . Authchips . | . . . Time . | . . . Total Robot Build Rating . | . . . Part Schematics Acquired . | . . . Parts Built . | . . . Authchips . | . . . Time . | . . . Total Part Build Rating . | . . . Part Studies Acquired . | . . . Parts Repaired . | . . . Time . | . . . Parts Recycled . | . . . Recycled Matter . | . . . Retrieved Matter . | . . . Retrieved Components . | . . . Parts Scanalyzed . | . . . Part Schematics Acquired . | . . . Parts Damaged . | . . . Bothacking | -11 -10 -10 ------------ Run | Yrd Mat Min Used RIF Installer . | . . . Robots Hacked . | . . . Non-combat . | . . . Combat . | . . . Robot Hacks Applied . | . . . Relay Couplers Released . | . . . Fabnet Peak Effective % . | . . . Robots Rewired . | . . . Allies Hacked . | . . . Hacks Repelled . | . . . Allies | -11 -10 -10 -------- Run | Yrd Mat Min Total Allies . | . . . Largest Group . | . . . Highest-Rated Group . | . . . Highest-Rated Ally . | . . . Total Orders . | . . . Ally Attacks . | . . . Total Damage . | . . . Kills . | . . . Allies Corrupted . | . . . Allies Melted . | . . . Intel | -11 -10 -10 ------- Run | Yrd Mat Min Active Infowar (turns) 611 | 77 360 174 Terrain 579 | 77 360 142 Seismic 483 | 17 360 106 ECM 41 | . . 41 Robot Analysis Total . | . . . Derelict Logs Recovered . | . . . Drone Launches . | . . . Drone Recoveries . | . . . Exploration | -11 -10 -10 ------------- Run | Yrd Mat Min Turns Passed 668 | 134 360 174 Spaces Moved 414 | 99 182 133 Core 43 | 9 . 34 Treads . | . . . Legs . | . . . Wheels 371 | 90 182 99 Hover . | . . . Flight . | . . . Fastest Speed 50 | 50 80 80 Average Speed 86 | 80 80 98 Slowest Speed 200 | 100 80 200 Overloaded Moves . | . . . Propulsion Burnouts . | . . . Robots Hopped . | . . . Potential Cave-ins 1 | . . 1 Cave-ins Triggered 1 | . . 1 Exploration Rate (%) 16 | 4 26 19 Regions Visited 2 Branch Regions 1 Pre-discovered Areas . | . . . Known Exits Taken . | . . . Unknown Exits Taken 2 | 1 1 . Scrap Searched . | . . . Spaces Dug 5 | . 5 . Terrain Destroyed 79 | 1 5 73 Melee . | . . . Projectile 6 | 1 5 . AOE 73 | . . 73 Terrain Rammed . | . . . Walls Destroyed . | . . . Machines Disabled . | . . . Actions | -11 -10 -10 --------- Run | Yrd Mat Min Total 605 | 128 327 150 Wait 95 | . 95 . Move 412 | 98 181 133 Hop . | . . . Pick Up 8 | . 6 2 Fast Attach 9 | 7 2 . Attach 4 | . 2 2 Detach 1 | . 1 . Swap . | . . . Drop 1 | . 1 . Fire 75 | 23 39 13 Melee . | . . . Ram . | . . . Kick . | . . . Crush . | . . . Escape Stasis . | . . . Rewire . | . . . Trap . | . . . Miscellaneous . | . . . Route ------- -11/Scrapyard -10/Materials -10/Mines History --------- Turn | Location | Event 7 | -11/Scrapyard | Discovered new exit (range 16) 135 | -11/Scrapyard | Entered Materials 310 | -10/Materials | Build established: Mutant 446 | -10/Materials | Lost 3 parts (1p1n1w) 483 | -10/Materials | Discovered new exit (range 7) 495 | -10/Materials | Entered Mines 502 | -10/Mines | Assembled infested the area 507 | -10/Mines | Assisted by a Guerilla fighting off Assembled 604 | -10/Mines | Core integrity fell below 50% 637 | -10/Mines | Crushed by falling debris 669 | -10/Mines | Core integrity fell below 20% 669 | -10/Mines | Destroyed by D-53 Grenadier with Mini Grenade Launcher Last Messages --------------- as-73194 destroyed. as-32436 destroyed. as-60709 destroyed. as-45805 destroyed. The unstable cave ceiling collapses. Acquired Terrain Scan Processor. Acquired 19 matter. The unstable cave ceiling collapses. Crushed by falling debris. Imp. Terrain Scanner destroyed. System corrupted by crushing effect (+2). Acquired 3 matter. The unstable cave ceiling collapses. System corrupted: Matter fused (-6). The unstable cave ceiling collapses. Acquired 68 matter. Acquired 14 matter. Acquired 2 matter. Particle Gun destroyed. Grenade Launcher destroyed. Map ----- +----------------------------------------------------+ | ?????# ???????????? #???????????????????? | | ?????# #?#???????#??# #?????#?????????????? | | ?????# #????#?#?????# #??#?????#??#???????? | | ?????# #??????####### ##??????????????????? | | ?????# #????### ## ##?? ??#???????????? | | ??#?## #?#### ###???????????????? | | ?????# #?# #???##????????????? | | ???### #?# ##? #?????#???????? | | ???# # ### # ## #?????????????? | | #??## # # # #?????????????? | | ???# # | ###?????????????? | | #??# ### ##?????????#????? | | ???## # ## #??#???????????? | | ???## # ###### #?????#????????? | | ???# #????# #????????#?????? | | ???# ##??? #???????#??????? | | ??## #?# ##?????????????? | | ?## #?? ##?????#????????? | | ?# #?? ##???????????????? | | ## # ###???#?#??????????? | | ?## ### ### #??#???????#????????? | | ??###??####### ## ####???????????????????? | | ?????????#???# #?????#?????????????? | | ??????#??????# #???????#???????????? | | ??????????? ?## #???????????????????? | | ????#?????????# @ #???????????????????? | | ?????????# #???????????????????? | | ?????????# d #???????????????????? | | ?????????#< d #???????????????????? | | #????????## # #?#?????????????????? | | ???????#??#### # ##???????????????????? | | ????????#???? # # #????????????????????? | | ????????????# ? #????????????????????? | | ????????????## ? ????????????????????? | | ?????????????#?? ????????????????????? | | ???????????????? ? ????????????????????? | | ???????????????$ ? ???????????????????? | | ??????????????? ? ???????????????????? | | ??????????????? ? ???????????????????? | | ??????????????? ?? ???????????????????? | | ???????????????? ??????????????????????? | | ??????????????????????????????????????????? | | ??????????????????????????????????????????? | | ??????????????????????????????????????????? | | ??????????????????????????????????????????? | | ??????????????????????????????????????????? | | ??????????????????????????????????????????? | | ??????????????????????????????????????????? | | ??????????????????????????????????????????? | | ??????????????????????????????????????????? | +----------------------------------------------------+ Best States ------------- Heat Dissipation 25 Energy Generation 10 Energy Capacity 125 Matter Stores 253 Matter Capacity 300 Sight Range 16 Terrain Scan Range 16 Terrain Scan Density 10 ECM Strength 1 Evasion (%) 44 Item Schematics ----------------- None Robot Schematics ------------------ None Fabricated ------------ Nothing Repaired ---------- Nothing Studied --------- None Alien Tech Used ----------------- None Achievements -------------- None Challenges ------------ None Game ------ Seed ArcsightSlugLeg Manual? 0 Play Time 00:11:36 Cumulative 30.9 hours Start 2026.06.22 @ 21:26:12 End 2026.06.22 @ 21:35:47 Sessions 1 Manual Loads 0 Difficulty Rogue Special Mode None Game No. 59 Rogue 59 Adventurer 0 Explorer 0 Win Type - Total 0 Types 0/0/0/0/0/0/0/0/0/0 Lore% 29 Gallery% 20 Achievement% 20 Wizard Run 0 Options --------- Layout 1 ASCII 0 Keyboard 1 Movement Arrows Keybinds 0 Fullscreen 0 Font 14/SmallcapsGlow Map View 55x38 Zoom Use 0% Tactical HUD 0 Map Filters NONE Filters NONE Steam 1 RUN: e18c5ac0-2190-4895-b60d-01ec95ffea68